bitfinex/quotes_SOLUSD_20260202
["timestamp","ask_amount","ask_price","bid_price","bid_amount"]
[1770011176865,4.06822355,98.149,98.09,10.35053222]
[1770011177070,4.06822355,98.149,98.091,4.41632126]
[1770011177366,4.06822355,98.139,98.08,10.35053222]
[1770011177570,4.06822355,98.139,98.081,4.41632126]
[1770011177960,4.06822355,98.139,98.09,10.35053222]
[1770011178159,4.06822355,98.154,98.11,10.35053222]
[1770011178459,4.06822355,98.168,98.12,10.35053222]
[1770011178655,4.06822355,98.168,98.13,10.35053222]
[1770011178980,4.06822355,98.196,98.15,10.35053222]
[1770011179168,4.06822355,98.209,98.16,10.35053222]
[1770011179366,4.06822355,98.209,98.151,4.41632126]
[1770011179674,28.34,98.219,98.151,4.41632126]
[1770011179675,4.06822355,98.199,98.151,4.41632126]
[1770011180175,28.34,98.219,98.18,10.35053222]
[1770011180477,28.34,98.219,98.131,5.36086188]
[1770011180478,28.34,98.248,98.201,4.41632126]
[1770011180659,4.06822355,98.259,98.21,10.35053222]
[1770011180970,4.06822355,98.249,98.21,10.35053222]
[1770011181175,10.35053222,98.27,98.211,4.41632126]
[1770011181176,4.06822355,98.269,98.211,4.41632126]
[1770011181379,4.06822355,98.269,98.221,4.41632126]
[1770011182359,4.06822355,98.269,98.22,10.35053222]
[1770011182562,4.06822355,98.269,98.172,0.28432314]
[1770011182862,28.34,98.304,98.26,10.35053222]
[1770011183163,4.06822355,98.321,98.201,50.74865378]
[1770011183360,4.06822355,98.321,98.28,10.35053222]
[1770011183860,4.06822355,98.354,98.31,10.35053222]
[1770011184162,4.06822355,98.368,98.32,10.35053222]
[1770011184356,4.06822355,98.329,98.28,10.35053222]
[1770011184563,4.06822355,98.329,98.267,4.41632126]
[1770011184564,4.06822355,98.319,98.27,10.35053222]
[1770011184767,4.06822355,98.317,98.267,4.41632126]
[1770011184955,28.32,98.318,98.28,10.35053222]
[1770011185157,28.32,98.318,98.291,0.25478463]
[1770011185158,23.56521537,98.318,98.291,0.25478463]
[1770011185375,23.56521537,98.318,98.29,10.35053222]
[1770011186585,23.56521537,98.318,98.24,10.35053222]
[1770011186586,4.5,98.355,98.31,10.35053222]
[1770011187076,28.32,98.356,98.32,10.35053222]
[1770011187483,4.5,98.355,98.31,10.35053222]
[1770011187783,4.5,98.349,98.29,10.35053222]
[1770011187975,4.5,98.339,98.236,54.86038864]
[1770011188184,4.5,98.329,98.27,10.35053222]
[1770011188364,4.5,98.329,98.273,4.27527085]
[1770011188773,10.35053222,98.32,98.273,4.27527085]
[1770011188974,4.5,98.319,98.273,4.27527085]
[1770011189978,28.32,98.356,98.3,10.35053222]
[1770011189979,10.35053222,98.35,98.3,10.35053222]
[1770011190179,28.32,98.356,98.283,4.27527085]
[1770011190180,4.5,98.339,98.283,4.27527085]
[1770011190481,4.5,98.329,98.273,4.27527085]
[1770011191080,4.5,98.329,98.28,10.35053222]
[1770011191476,4.5,98.329,98.273,4.27527085]
[1770011192072,4.5,98.329,98.28,10.35053222]
[1770011192267,4.5,98.329,98.264,4.27527085]
[1770011192467,4.5,98.329,98.28,10.35053222]
[1770011192678,4.5,98.344,98.3,10.35053222]
[1770011193778,4.5,98.344,98.29,10.35053222]
[1770011194367,10.35053222,98.31,98.26,10.35053222]
[1770011194567,4.5,98.319,98.26,10.35053222]
[1770011194788,4.5,98.319,98.263,4.27527085]
[1770011195179,10.35053222,98.31,98.25,10.35053222]
[1770011195375,14.85053222,98.29,98.24,10.35053222]
[1770011195573,4.5,98.29,98.243,4.27527085]
[1770011195979,32.8,98.305,98.26,10.35053222]
[1770011196373,4.5,98.304,98.26,10.35053222]
[1770011197288,4.5,98.345,98.29,10.35053222]
[1770011197485,4.5,98.345,98.248,5.36086188]
[1770011197486,4.5,98.345,98.31,10.35053222]
[1770011197800,4.5,98.359,98.31,10.35053222]
[1770011198088,4.5,98.359,98.32,10.35053222]
[1770011198590,4.5,98.359,98.303,4.27527085]
[1770011198972,4.5,98.359,98.31,10.35053222]
[1770011199169,4.5,98.339,98.28,10.35053222]
[1770011199378,4.5,98.319,98.26,10.35053222]
[1770011199571,10.35053222,98.31,98.26,10.35053222]
[1770011199777,10.35053222,98.29,98.24,10.35053222]
[1770011199971,10.35053222,98.29,98.176,21.94]
[1770011199972,4.5,98.299,98.25,10.35053222]
[1770011200390,4.5,98.289,98.24,10.35053222]
[1770011200693,4.5,98.289,98.243,4.27527085]
[1770011201878,28.3,98.304,98.26,10.35053222]
[1770011201879,4.5,98.303,98.26,10.35053222]
[1770011202288,28.3,98.304,98.27,10.35053222]
[1770011202887,10.16345311,98.392,98.253,4.27527085]
[1770011202888,4.5,98.334,98.28,10.35053222]
[1770011203198,4.5,98.348,98.32,10.35053222]
[1770011203392,4.5,98.369,98.32,10.35053222]
[1770011203697,4.5,98.359,98.31,10.35053222]
[1770011203898,4.5,98.359,98.293,4.27527085]
[1770011203899,4.5,98.359,98.303,4.27527085]
[1770011204196,4.5,98.359,98.31,10.35053222]
[1770011204395,4.5,98.339,98.29,10.35135866]
[1770011204600,4.5,98.329,98.273,4.27527085]
[1770011204988,4.5,98.329,98.283,4.27527085]
[1770011205388,4.5,98.329,98.228,5.36086188]
[1770011205389,4.5,98.329,98.28,10.35135866]
[1770011205595,4.5,98.327,98.283,4.27527085]
[1770011205898,4.5,98.327,98.273,4.27527085]
[1770011206098,4.5,98.327,98.28,10.35135866]
[1770011206397,4.5,98.327,98.273,4.27527085]
[1770011206398,30.64,98.326,98.273,4.27527085]
[1770011206603,4.5,98.319,98.273,4.27527085]
[1770011207114,4.5,98.319,98.28,10.35135866]
[1770011207279,32.8,98.333,98.29,10.35135866]
[1770011207476,4.5,98.347,98.3,10.35135866]
[1770011208288,4.5,98.339,98.29,10.35135866]
[1770011208791,4.5,98.319,98.273,4.27527085]
[1770011209193,4.5,98.319,98.27,10.35135866]
[1770011209395,4.5,98.309,98.25,10.35135866]
[1770011209701,4.5,98.299,98.25,10.35135866]
[1770011209886,10.35135866,98.28,98.23,10.35135866]
[1770011210089,4.5,98.269,98.21,10.35135866]
[1770011210309,4.5,98.259,98.21,10.35135866]
[1770011210497,4.5,98.259,98.22,10.35135866]
[1770011210684,4.5,98.259,98.15,0.1]
[1770011210685,4.5,98.249,98.2,10.35135866]
[1770011210990,4.5,98.249,98.157,5.36086188]
[1770011210991,4.5,98.249,98.193,4.27527085]
[1770011211194,4.5,98.249,98.2,10.35135866]
[1770011211392,4.5,98.266,98.21,10.35135866]
[1770011211592,4.5,98.259,98.2,10.35135866]
[1770011211776,4.5,98.249,98.193,4.27527085]
[1770011211982,4.5,98.249,98.2,10.35135866]
[1770011212189,4.5,98.239,98.19,10.35135866]
[1770011212383,28.3,98.245,98.21,10.35135866]
[1770011212586,4.5,98.253,98.21,10.35135866]
[1770011212887,4.5,98.267,98.24,10.35135866]
[1770011213100,4.5,98.267,98.21,10.35135866]
[1770011213277,4.5,98.267,98.22,10.35135866]
[1770011213484,4.5,98.267,98.23,10.35135866]
[1770011213786,4.5,98.267,98.22,10.35135866]
[1770011214184,4.5,98.267,98.23,10.35135866]
[1770011214378,4.5,98.288,98.24,10.35135866]
[1770011214602,4.5,98.288,98.25,10.35135866]
[1770011214998,4.5,98.288,98.26,10.35135866]
[1770011215304,4.5,98.288,98.233,4.27527085]
[1770011215493,4.5,98.288,98.24,10.35135866]
[1770011216080,4.5,98.288,98.243,4.27527085]
[1770011216287,28.3,98.301,98.27,10.35135866]
[1770011216601,4.5,98.317,98.27,10.35135866]
[1770011216901,4.5,98.329,98.29,10.35135866]
[1770011217406,10.16159163,98.41,98.248,5.36086188]
[1770011217407,4.5,98.358,98.32,10.35135866]
[1770011217583,4.5,98.379,98.33,10.35135866]
[1770011218187,4.5,98.379,98.34,10.35135866]
[1770011218384,4.5,98.379,98.34,15.72266795]
[1770011220504,4.5,98.409,98.337,4.27527085]
[1770011220710,4.5,98.409,98.348,4.27527085]
[1770011221005,4.5,98.409,98.306,21.9]
[1770011221006,4.5,98.409,98.37,15.72266795]
[1770011221197,4.5,98.427,98.37,15.72266795]
[1770011221605,4.5,98.427,98.38,15.72266795]
[1770011221990,4.5,98.427,98.348,4.27527085]
[1770011221991,4.5,98.427,98.39,15.72266795]
[1770011222287,28.28,98.434,98.4,15.72266795]
[1770011222488,28.28,98.434,98.312,10.17162308]
[1770011222489,15.72266795,98.42,98.37,15.72266795]
[1770011222689,4.5,98.399,98.34,15.72266795]
[1770011222895,4.5,98.369,98.32,15.72266795]
[1770011223096,4.5,98.369,98.31,15.72266795]
[1770011223307,4.5,98.359,98.251,21.88]
[1770011223495,4.5,98.349,98.29,15.72266795]
[1770011223698,4.5,98.329,98.28,15.72266795]
[1770011224092,4.5,98.319,98.26,15.72266795]
[1770011224493,4.5,98.319,98.27,15.72266795]
[1770011224789,4.5,98.333,98.29,15.72266795]
[1770011224995,4.5,98.329,98.28,15.72266795]
[1770011225407,4.5,98.329,98.27,15.72266795]
[1770011226211,4.5,98.329,98.28,15.72266795]
[1770011226408,4.5,98.329,98.29,15.72266795]
[1770011226704,4.5,98.329,98.18,1.01853738]
[1770011226705,4.5,98.319,98.27,15.72266795]
[1770011226914,4.5,98.299,98.24,15.72266795]
[1770011227102,4.5,98.289,98.23,15.72266795]
[1770011227300,4.5,98.279,98.23,15.72266795]
[1770011227704,4.5,98.309,98.26,15.72266795]
[1770011228097,4.5,98.309,98.25,15.72266795]
[1770011228408,4.5,98.289,98.23,15.72266795]
[1770011228913,4.5,98.279,98.22,15.72266795]
[1770011229418,4.5,98.259,98.22,15.72266795]
[1770011229804,4.5,98.301,98.25,15.72266795]
[1770011229994,15.72266795,98.29,98.217,4.27527085]
[1770011230345,4.5,98.289,98.217,4.27527085]
[1770011230525,28.28,98.299,98.26,15.72266795]
[1770011230820,4.5,98.306,98.25,15.72266795]
[1770011231020,4.5,98.318,98.27,15.72266795]
[1770011231312,4.5,98.332,98.29,15.72266795]
[1770011231491,4.5,98.319,98.26,15.72266795]
[1770011231711,5.36086188,98.366,98.24,15.72266795]
[1770011231712,4.5,98.289,98.24,15.72266795]
[1770011231923,4.5,98.269,98.22,15.72266795]
[1770011232214,4.27527085,98.326,98.25,15.72266795]
[1770011232419,4.5,98.346,98.32,15.72266795]
[1770011232711,4.5,98.346,98.29,15.72266795]
[1770011232911,4.5,98.346,98.234,7.72169286]
[1770011232912,4.5,98.329,98.238,5.36086188]
[1770011233132,4.5,98.309,98.25,15.72266795]
[1770011233311,4.5,98.299,98.26,15.72266795]
[1770011234721,4.5,98.313,98.27,15.72266795]
[1770011235231,4.5,98.313,98.28,15.72266795]
[1770011235609,4.5,98.313,98.27,15.72266795]
[1770011236132,4.5,98.327,98.28,15.72266795]
[1770011236336,4.5,98.346,98.271,0.28432314]
[1770011236534,4.5,98.346,98.31,15.72266795]
[1770011236735,4.5,98.369,98.32,15.72266795]
[1770011236942,4.5,98.389,98.35,15.72266795]
[1770011237155,4.5,98.404,98.36,15.72266795]
[1770011237341,4.5,98.419,98.38,15.72266795]
[1770011237547,4.5,98.419,98.37,15.72266795]
[1770011238137,4.5,98.419,98.38,15.72266795]
[1770011238332,4.5,98.419,98.39,15.72266795]
[1770011238526,4.5,98.419,98.39,10.32976277]
[1770011238727,0.2,98.42,98.4,10.32976277]
[1770011238934,0.2,98.42,98.37,4.27527085]
[1770011239114,4.7,98.42,98.38,10.32976277]
[1770011239320,0.2,98.42,98.38,10.32976277]
[1770011239519,0.2,98.42,98.37,4.27527085]
[1770011239520,4.5,98.419,98.37,14.60503362]
[1770011239715,0.2,98.42,98.38,10.32976277]
[1770011239930,0.2,98.42,98.41,10.32976277]
[1770011240136,4.5,98.452,98.41,10.32976277]
[1770011240437,4.5,98.449,98.4,10.32976277]
[1770011240617,4.5,98.449,98.39,10.32976277]
[1770011240819,4.5,98.419,98.36,10.32976277]
[1770011241530,4.5,98.389,98.34,10.32976277]
[1770011241832,4.5,98.389,98.33,10.32976277]
[1770011242041,4.5,98.379,98.32,10.32976277]
[1770011242215,4.5,98.369,98.32,10.32976277]
[1770011242628,4.5,98.359,98.31,10.32976277]
[1770011242821,4.5,98.349,98.3,10.32976277]
[1770011243029,4.5,98.349,98.31,10.32976277]
[1770011243219,4.5,98.349,98.3,10.32976277]
[1770011244028,4.5,98.349,98.29,10.32976277]
[1770011244439,4.5,98.349,98.29,15.73776255]
[1770011244943,4.5,98.349,98.3,15.73776255]
[1770011245322,4.5,98.349,98.29,15.73776255]
[1770011245525,4.5,98.319,98.26,15.73776255]
[1770011245732,4.5,98.309,98.25,15.73776255]
[1770011245921,4.5,98.308,98.25,15.73776255]
[1770011246440,4.5,98.308,98.26,15.73776255]
[1770011246621,4.5,98.308,98.27,15.73776255]
[1770011247249,4.5,98.308,98.26,15.73776255]
[1770011247729,4.5,98.299,98.24,15.73776255]
[1770011247928,4.5,98.297,98.24,15.73776255]
[1770011248646,4.27527085,98.34,98.23,15.73776255]
[1770011248647,4.5,98.289,98.23,15.73776255]
[1770011248946,4.5,98.279,98.22,15.73776255]
[1770011249342,4.5,98.279,98.151,1.01883832]
[1770011249343,4.5,98.239,98.19,15.73776255]
[1770011249544,4.5,98.239,98.17,0.1]
[1770011249545,4.5,98.219,98.18,15.73776255]
[1770011249944,4.5,98.219,98.17,0.1]
[1770011250850,4.5,98.217,98.17,0.1]
[1770011251147,4.5,98.257,98.21,15.73776255]
[1770011251348,4.5,98.271,98.24,15.73776255]
[1770011251650,4.5,98.292,98.26,15.73776255]
[1770011251835,4.5,98.292,98.198,5.36086188]
[1770011251836,4.5,98.31,98.28,15.73776255]
[1770011252034,4.5,98.331,98.29,15.73776255]
[1770011252829,4.5,98.319,98.27,15.73776255]
[1770011253046,4.5,98.319,98.26,15.73776255]
[1770011253247,4.5,98.309,98.26,15.73776255]
[1770011253446,4.5,98.299,98.25,15.73776255]
[1770011253745,4.5,98.299,98.26,15.73776255]
[1770011253932,4.5,98.299,98.25,15.73776255]
[1770011254747,4.5,98.299,98.26,15.73776255]
[1770011254952,4.5,98.299,98.231,4.27527085]
[1770011254953,4.5,98.299,98.25,15.73776255]
[1770011255652,4.5,98.307,98.26,15.73776255]
[1770011255854,4.5,98.307,98.27,15.73776255]
[1770011256241,4.5,98.307,98.26,15.73776255]
[1770011257151,4.5,98.307,98.27,15.73776255]
[1770011257353,4.5,98.329,98.28,15.73776255]
[1770011257560,4.5,98.328,98.28,15.73776255]
[1770011258255,4.5,98.319,98.27,15.73776255]
[1770011258456,4.5,98.319,98.26,15.73776255]
[1770011258756,28.3,98.327,98.251,4.27527085]
[1770011258757,28.3,98.327,98.29,15.73776255]
[1770011259257,4.5,98.326,98.29,15.73776255]
[1770011259455,4.5,98.359,98.3,15.73776255]
[1770011259758,4.5,98.359,98.31,15.73776255]
[1770011260545,4.5,98.359,98.32,15.73776255]
[1770011260747,4.5,98.359,98.31,15.73776255]
[1770011260945,4.5,98.349,98.29,15.73776255]
[1770011261257,4.5,98.349,98.281,4.27527085]
[1770011261258,4.5,98.339,98.28,15.73776255]
[1770011261445,4.5,98.337,98.28,15.73776255]
[1770011261760,4.5,98.319,98.263,4.27527085]
[1770011261952,4.5,98.317,98.263,4.27527085]
[1770011262341,4.5,98.317,98.28,15.73776255]
[1770011263161,28.28,98.33,98.29,15.73776255]
[1770011263653,4.5,98.329,98.242,5.36086188]
[1770011263854,4.5,98.329,98.28,15.73776255]
[1770011264739,4.5,98.299,98.246,0.28432314]
[1770011264948,4.5,98.299,98.25,15.73776255]
[1770011265150,4.5,98.299,98.26,15.73776255]
[1770011265550,28.28,98.306,98.27,15.73776255]
[1770011266444,4.5,98.305,98.26,15.74941493]
[1770011267435,4.5,98.305,98.209,42.22926165]
[1770011267436,4.5,98.299,98.243,4.27527085]
[1770011267654,4.5,98.289,98.23,15.74941493]
[1770011267841,4.5,98.279,98.22,15.74941493]
[1770011268042,4.5,98.279,98.223,4.27527085]
[1770011268264,20.24941493,98.23,98.209,42.22926165]
[1770011268556,3.69045506,98.229,98.17,15.84941493]
[1770011268759,3.69045506,98.229,98.17,0.1]
[1770011269061,28.28,98.232,98.17,0.1]
[1770011269062,15.74941493,98.22,98.17,0.1]
[1770011269251,28.28,98.227,98.17,15.84941493]
[1770011269454,28.28,98.227,98.17,0.1]
[1770011269455,15.74941493,98.22,98.17,0.1]
[1770011269847,15.74941493,98.22,98.17,15.84941493]
[1770011270046,28.28,98.227,98.17,15.84941493]
[1770011270361,4.18847147,98.227,98.17,15.84941493]
[1770011270543,4.18847147,98.227,98.18,15.74941493]
[1770011271048,4.18847147,98.227,98.19,15.74941493]
[1770011271438,28.3,98.228,98.2,15.74941493]
[1770011271840,4.18847147,98.209,98.17,0.1]
[1770011272563,4.18847147,98.189,98.17,0.1]
[1770011274262,50.40207018,98.293,98.17,15.84941493]
[1770011274567,62.7,98.408,98.2,15.74941493]
[1770011274568,15.74941493,98.26,98.2,15.74941493]
[1770011274765,15.74941493,98.26,98.21,15.74941493]
[1770011275061,28.3,98.292,98.24,15.74941493]
[1770011275452,4.27527085,98.273,98.177,4.22854038]
[1770011275647,4.27527085,98.267,98.21,15.74941493]
[1770011276459,3.96196375,98.266,98.21,15.74941493]
[1770011277368,3.96196375,98.259,98.2,15.74941493]
[1770011277568,3.96196375,98.256,98.2,15.74941493]
[1770011278348,28.3,98.255,98.2,15.74941493]
[1770011278544,3.96196375,98.254,98.2,15.74941493]
[1770011280172,3.96196375,98.252,98.2,15.74941493]
[1770011280678,3.96196375,98.25,98.21,15.74941493]
[1770011280974,28.3,98.253,98.17,0.1]
[1770011280975,3.96196375,98.219,98.17,0.1]
[1770011281156,5.36086188,98.243,98.15,0.1]
[1770011281157,3.86296375,98.189,98.15,0.1]
[1770011281360,3.78609076,98.169,98.119,4.22854038]
[1770011281551,3.78609076,98.169,98.11,15.74941493]
[1770011281751,15.74941493,98.15,98.106,4.22854038]
[1770011281956,28.3,98.149,98.13,0.06198016]
[1770011282155,3.72632411,98.148,98.09,15.74941493]
[1770011282356,3.72632411,98.129,98.077,4.22854038]
[1770011282585,3.72632411,98.109,98.033,9.55937607]
[1770011282755,15.74941493,98.09,98.04,15.74941493]
[1770011282952,28.3,98.089,98.061,4.22854038]
[1770011283152,28.3,98.089,98.046,4.22854038]
[1770011283370,3.72632411,98.088,98.031,4.22854038]
[1770011283867,3.72632411,98.059,98.029,39.2576117]
[1770011284051,3.68906086,98.074,98.021,4.22854038]
[1770011284255,28.3,98.089,98.02,15.74941493]
[1770011284256,3.68906086,98.069,98.02,15.74941493]
[1770011284477,15.74941493,98.08,98.021,4.22854038]
[1770011284656,3.68906086,98.079,98.03,15.74941493]
[1770011284856,28.3,98.089,98.05,15.74941493]
[1770011285052,28.3,98.089,98.051,4.22854038]
[1770011285253,28.3,98.089,98.006,4.27527085]
[1770011285254,28.3,98.089,98.04,15.74941493]
[1770011285475,3.68906086,98.088,98.012,4.22854038]
[1770011285682,3.68906086,98.069,98.01,15.74941493]
[1770011285882,3.68906086,98.059,98.001,4.22854038]
[1770011286069,3.68906086,98.059,98.01,15.74941493]
[1770011286255,19.43847579,98.08,98.021,4.22854038]
[1770011286578,3.68906086,98.079,98.021,4.22854038]
[1770011286874,3.68906086,98.069,98.02,19.97795531]
[1770011287074,15.74941493,98.08,98.021,4.22854038]
[1770011287280,28.3,98.089,98.04,19.97795531]
[1770011287664,28.3,98.089,98.05,15.74941493]
[1770011287865,28.3,98.089,98.051,4.08030911]
[1770011288363,28.34,98.115,98.08,10.39507658]
[1770011288573,28.34,98.115,98.09,10.39507658]
[1770011288755,4.4531168,98.114,98.07,10.39507658]
[1770011289078,28.34,98.115,98.06,10.39507658]
[1770011289268,28.34,98.115,98.07,10.39507658]
[1770011289468,4.4531168,98.109,98.06,10.39507658]
[1770011289670,4.4531168,98.109,98.05,14.47538569]
[1770011289870,4.4531168,98.109,98.06,10.39507658]
[1770011290072,4.4531168,98.109,98.051,4.08030911]
[1770011290258,4.4531168,98.089,98.03,10.39507658]
[1770011290459,4.4531168,98.089,98.041,4.08030911]
[1770011290683,4.4531168,98.079,98.007,4.08030911]
[1770011290880,4.4531168,98.077,98.021,4.08030911]
[1770011291265,4.4531168,98.077,98.03,10.39507658]
[1770011291476,4.4531168,98.077,98.021,4.08030911]
[1770011291659,4.4531168,98.059,98.001,4.08030911]
[1770011291984,28.34,98.078,98.04,10.39507658]
[1770011292167,4.27527085,98.095,98.017,4.08030911]
[1770011292478,4.5,98.17,98.083,4.27527085]
[1770011292659,4.5,98.17,98.15,10.39507658]
[1770011292860,4.5,98.17,98.14,10.39507658]
[1770011293059,4.5,98.17,98.118,4.27527085]
[1770011293280,4.5,98.17,98.087,4.27527085]
[1770011293476,4.5,98.159,98.1,10.39507658]
[1770011293691,4.5,98.159,98.12,10.39507658]
[1770011294285,4.5,98.159,98.11,10.39507658]
[1770011294490,4.5,98.159,98.1,15.79970606]
[1770011294866,4.5,98.159,98.11,15.79970606]
[1770011295067,4.5,98.159,98.12,15.79970606]
[1770011295397,4.5,98.149,98.1,15.79970606]
[1770011295578,4.5,98.149,97.662,140.0]
[1770011295579,4.5,98.139,98.08,15.79970606]
[1770011295767,15.79970606,98.14,98.09,15.79970606]
[1770011295768,4.5,98.137,98.09,15.79970606]
[1770011295968,4.5,98.137,98.08,15.79970606]
[1770011296168,4.5,98.137,98.09,15.79970606]
[1770011296385,4.5,98.137,98.061,4.27527085]
[1770011296574,4.5,98.137,98.08,15.79970606]
[1770011297678,4.5,98.129,98.07,15.79970606]
[1770011297884,4.5,98.119,98.06,15.79970606]
[1770011298287,4.5,98.099,98.04,15.79970606]
[1770011298487,4.5,98.089,98.03,15.79970606]
[1770011298868,4.5,98.079,98.02,15.79970606]
[1770011299276,4.5,98.069,98.01,15.79970606]
[1770011299585,4.5,98.098,98.023,4.27527085]
[1770011299775,4.5,98.129,98.09,15.79970606]
[1770011299971,4.5,98.129,98.02,15.79970606]
[1770011300177,4.5,98.119,98.07,15.79970606]
[1770011300768,4.5,98.119,97.979,50.16271747]
[1770011300975,28.34,98.137,98.03,15.79970606]
[1770011300976,4.5,98.089,98.03,15.79970606]
[1770011301175,15.79970606,98.09,98.03,15.79970606]
[1770011301176,4.5,98.087,98.03,15.79970606]
[1770011301375,4.5,98.079,98.02,15.79970606]
[1770011302186,4.5,98.079,98.03,15.79970606]
[1770011302490,4.5,98.079,97.991,4.27527085]
[1770011302798,4.5,98.059,98.0,15.89970606]
[1770011303100,4.5,98.059,98.0,0.1]
[1770011303318,4.5,98.029,97.98,15.79970606]
[1770011303604,4.5,98.029,97.89,23.88023825]
[1770011303605,28.34,98.044,98.01,15.79970606]
[1770011303781,32.84,98.043,98.01,15.79970606]
[1770011303978,4.5,98.042,98.0,15.79970606]
[1770011304185,4.5,98.042,97.968,4.27527085]
[1770011304385,4.5,98.042,98.0,15.79970606]
[1770011304591,4.5,98.042,97.99,15.79970606]
[1770011304797,4.5,98.042,98.0,15.79970606]
[1770011305413,4.5,98.039,97.99,15.79970606]
[1770011305600,4.5,98.037,97.98,15.79970606]
[1770011305774,4.5,98.029,97.97,15.79970606]
[1770011305974,4.5,98.029,97.98,15.79970606]
[1770011306175,4.5,98.029,97.938,4.27527085]
[1770011306391,4.5,98.019,97.98,15.79970606]
[1770011306584,4.5,98.019,97.99,15.79970606]
[1770011306895,4.5,98.037,98.0,15.79970606]
[1770011307094,4.5,98.051,98.02,15.79970606]
[1770011308296,28.36,98.056,98.04,15.79970606]
[1770011308477,4.5,98.081,98.05,15.79970606]
[1770011309188,4.5,98.081,98.04,15.79970606]
[1770011309388,4.5,98.081,98.03,15.79970606]
[1770011309989,4.5,98.079,98.03,15.79970606]
[1770011310187,4.5,98.079,97.978,5.36086188]
[1770011310498,4.5,98.059,98.01,15.79970606]
[1770011310797,4.5,98.057,98.01,15.79970606]
[1770011310997,4.5,98.057,98.02,15.79970606]
[1770011311596,28.36,98.058,98.05,15.79970606]
[1770011311792,4.5,98.091,98.05,15.79970606]
[1770011312098,4.5,98.089,98.05,15.79970606]
[1770011312398,4.5,98.102,98.08,15.79970606]
[1770011312593,28.36,98.121,98.09,15.79970606]
[1770011312796,28.36,98.121,98.048,4.27527085]
[1770011312797,4.5,98.135,98.08,15.79970606]
[1770011312996,4.5,98.129,98.08,15.79970606]
[1770011313296,4.5,98.129,98.048,4.27527085]
[1770011313484,4.5,98.16,98.12,15.79970606]
[1770011313685,4.5,98.16,98.069,0.28432314]
[1770011313884,4.5,98.16,98.11,15.79970606]
[1770011314090,4.5,98.159,98.1,15.79970606]
[1770011314289,4.5,98.157,98.11,15.79970606]
[1770011314885,4.5,98.157,98.1,15.79970606]
[1770011315588,4.5,98.157,98.11,15.79970606]
[1770011315784,4.5,98.157,98.023,50.43425825]
[1770011316004,4.5,98.139,98.09,15.79970606]
[1770011316306,4.5,98.137,98.09,15.79970606]
[1770011316602,4.5,98.137,98.09,10.39408295]
[1770011317178,4.5,98.137,98.1,10.39408295]
[1770011317393,4.5,98.163,98.12,10.39408295]
[1770011317608,4.5,98.189,98.15,10.39408295]
[1770011317787,0.2,98.19,98.16,10.39408295]
[1770011317982,4.5,98.189,98.14,10.39408295]
[1770011318196,4.5,98.188,98.14,10.39408295]
[1770011318387,4.5,98.188,98.15,10.39408295]
[1770011318595,4.5,98.188,98.14,10.39408295]
[1770011318902,4.5,98.188,98.08,10.39408295]
[1770011318903,4.5,98.149,98.09,10.39408295]
[1770011319104,4.5,98.129,98.07,10.39408295]
[1770011319278,4.5,98.129,98.001,50.52301444]
[1770011319484,4.5,98.129,98.07,10.39408295]
[1770011319692,4.5,98.119,98.07,10.39408295]
[1770011320213,4.5,98.099,98.04,10.39408295]
[1770011320382,4.5,98.097,98.04,10.39408295]
[1770011320584,4.5,98.097,98.05,10.39408295]
[1770011320790,28.34,98.098,98.08,10.39408295]
[1770011321004,4.5,98.129,98.09,10.39408295]
[1770011321205,4.5,98.129,98.041,4.27527085]
[1770011321389,4.5,98.129,98.07,10.39408295]
[1770011321589,4.5,98.109,98.05,10.39408295]
[1770011321793,4.5,98.107,98.05,10.39408295]
[1770011323102,4.5,98.107,97.998,5.36086188]
[1770011323103,4.5,98.107,98.07,10.39408295]